bitfinex/quotes_ETHUSD_20241223
["timestamp","ask_amount","ask_price","bid_price","bid_amount"]
[1734986093101,0.8083,3379.2,3377.6,2.96068]
[1734986093292,0.8083,3379.0,3378.0,2.96024]
[1734986093916,0.8083,3378.3,3377.4,1.21557213]
[1734986094193,0.8083,3378.3,3377.6,2.96067]
[1734986094488,0.8083,3378.3,3377.4,1.21557213]
[1734986094489,0.8083,3378.3,3377.4,2.96083]
[1734986094645,0.8083,3378.3,3377.5,0.296083]
[1734986094976,0.8083,3378.3,3378.1,2.96017]
[1734986095358,0.8083,3378.3,3378.0,2.96031]
[1734986096392,1.38486775,3378.7,3377.5,1.112783]
[1734986096575,0.7989,3379.3,3378.8,2.95961]
[1734986096775,0.59124994,3379.2,3379.0,2.9594]
[1734986096985,0.59124994,3379.2,3379.0,2.95939]
[1734986097296,0.59124994,3379.2,3378.8,2.95955]
[1734986097497,0.59124994,3379.2,3378.2,0.7669]
[1734986097498,0.59124994,3379.2,3379.0,2.95941]
[1734986097703,0.7989,3379.3,3378.6,2.95979]
[1734986097872,0.7989,3379.3,3378.8,2.95959]
[1734986098377,0.7989,3379.3,3378.7,0.295979]
[1734986098577,0.7989,3379.3,3378.2,0.7669]
[1734986098578,0.7989,3379.3,3378.9,2.95948]
[1734986099312,0.7989,3379.3,3377.3,4.21557213]
[1734986099313,0.7989,3379.3,3377.9,0.7839]
[1734986099467,0.7989,3379.3,3378.0,2.96033]
[1734986099803,1.40641199,3379.3,3378.5,2.95982]
[1734986100006,1.40641199,3379.3,3378.1,2.96024]
[1734986100203,0.8303,3379.2,3378.2,3.334484]
[1734986100406,0.8303,3379.2,3378.4,2.95996]
[1734986100563,0.8303,3379.2,3377.7,3.1512988]
[1734986100765,0.60751199,3379.3,3377.6,3.7277]
[1734986100766,0.8303,3379.0,3378.2,2.96007]
[1734986101066,0.8303,3379.0,3377.9,2.96041]
[1734986101262,0.8303,3379.0,3378.2,2.96015]
[1734986101575,0.60751199,3379.3,3378.0,0.296041]
[1734986101775,0.60751199,3379.3,3378.1,3.9183988]
[1734986101978,0.8303,3379.2,3377.7,0.7671]
[1734986102161,0.8303,3378.9,3377.8,2.96047]
[1734986102367,0.8303,3378.3,3377.4,2.96081]
[1734986102567,0.8303,3378.1,3377.4,2.96081]
[1734986102829,0.8303,3378.1,3377.4,0.7671]
[1734986103030,0.8303,3379.4,3377.6,2.96068]
[1734986103190,0.8303,3379.4,3378.7,2.95971]
[1734986103523,0.8303,3379.4,3378.8,2.95961]
[1734986103903,0.8303,3379.4,3378.6,2.95974]
[1734986104071,0.8303,3379.4,3378.7,2.95971]
[1734986104272,0.8303,3379.3,3377.5,0.7671]
[1734986104507,0.8303,3379.1,3378.1,2.96015]
[1734986105149,1.3803,3379.0,3377.9,2.96041]
[1734986105438,0.8303,3378.3,3377.7,2.96054]
[1734986105602,0.8303,3378.3,3377.8,2.96048]
[1734986105988,0.8303,3378.3,3377.6,2.96064]
[1734986106894,0.8303,3378.3,3377.9,2.96038]
[1734986107089,0.00212028,3378.4,3377.6,0.592152]
[1734986107311,0.00212028,3378.4,3378.3,2.96006]
[1734986107926,0.00212028,3378.4,3377.7,0.7671]
[1734986108144,0.00212028,3378.4,3378.1,2.96017]
[1734986108542,0.00212028,3378.4,3378.2,2.96011]
[1734986108824,0.00212028,3378.4,3377.6,0.592152]
[1734986108825,0.8303,3378.3,3377.6,0.592152]
[1734986108997,0.8303,3378.3,3377.6,2.96067]
[1734986109222,0.8303,3378.3,3377.8,2.96048]
[1734986109445,0.00212028,3378.4,3378.3,2.96006]
[1734986111205,0.77552028,3378.4,3377.7,2.96054]
[1734986111408,0.77552028,3378.4,3378.1,2.96022]
[1734986111608,0.77552028,3378.4,3377.8,2.9605]
[1734986111946,0.77552028,3378.4,3378.1,2.96022]
[1734986112848,0.77552028,3378.4,3377.2,0.58418498]
[1734986113171,0.00212028,3378.4,3378.3,2.96006]
[1734986114108,0.00212028,3378.4,3378.1,2.96021]
[1734986114323,0.00212028,3378.4,3378.3,2.96006]
[1734986115470,0.00212028,3378.4,3378.3,3.552094]
[1734986116827,2.8e-07,3378.4,3378.3,6.58168756]
[1734986117018,1.22564835,3379.6,3379.5,2.95901]
[1734986118277,3.24485177,3379.9,3379.4,2.95901]
[1734986118278,0.7721,3379.9,3379.4,2.95901]
[1734986118433,0.7721,3379.9,3378.8,2.95963]
[1734986118752,0.7721,3379.9,3379.3,2.95911]
[1734986118948,0.55,3379.8,3378.3,1.357534]
[1734986119151,2.95897,3379.6,3378.6,2.95979]
[1734986119462,0.7832,3379.3,3378.6,2.95979]
[1734986119654,0.7832,3379.3,3378.3,1.21557213]
[1734986119857,0.7832,3379.3,3379.0,2.9594]
[1734986120011,0.7832,3379.3,3378.4,0.7655]
[1734986120215,0.7832,3379.3,3378.7,2.95964]
[1734986120555,0.7832,3379.3,3378.0,0.7655]
[1734986120751,0.7832,3379.3,3379.1,2.9593]
[1734986120956,0.7832,3379.3,3378.0,0.7655]
[1734986120957,0.7832,3379.3,3379.2,2.95928]
[1734986121322,2.00884835,3379.7,3379.6,2.95893]
[1734986121676,1.22564835,3379.7,3379.6,2.95893]
[1734986121975,0.7832,3379.6,3379.2,2.95919]
[1734986122147,0.7832,3379.6,3378.5,2.95989]
[1734986122343,0.7832,3379.6,3379.3,2.95916]
[1734986122513,0.7832,3379.6,3379.3,2.9591]
[1734986123057,1.1691409,3379.6,3378.7,2.95971]
[1734986123299,1.1691409,3379.6,3379.0,2.95936]
[1734986123500,0.7832,3379.6,3378.8,0.02959199]
[1734986123788,0.7832,3380.1,3379.3,2.95919]
[1734986123960,0.7832,3380.1,3379.2,3.7247]
[1734986124150,0.7832,3380.1,3379.8,2.95874]
[1734986124352,0.7832,3380.1,3379.2,3.7247]
[1734986124589,0.7832,3380.1,3379.9,2.95862]
[1734986125383,0.7832,3380.1,3379.4,2.95904]
[1734986125384,0.7832,3380.1,3379.7,2.95875]
[1734986125783,0.7832,3380.1,3380.0,2.95857]
[1734986126006,1.39377235,3380.9,3380.3,2.95829]
[1734986126007,0.7832,3380.4,3380.3,2.95829]
[1734986126284,1.39377235,3380.9,3380.8,2.95787]
[1734986127604,0.168124,3380.9,3380.1,2.95849]
[1734986127904,0.168124,3380.9,3380.7,2.95793]
[1734986128255,0.168124,3380.9,3380.8,2.95787]
[1734986129766,0.168124,3380.9,3379.9,3.60766926]
[1734986129767,0.168124,3380.9,3379.9,6.56631926]
[1734986129992,0.7841,3380.8,3380.3,2.95825]
[1734986130176,0.7841,3380.8,3380.3,2.9583]
[1734986130774,0.7841,3380.8,3380.4,2.95821]
[1734986131203,0.168124,3380.9,3380.7,2.95796]
[1734986131876,0.168124,3380.9,3380.0,2.95853]
[1734986131877,0.168124,3380.9,3380.8,3.76597]
[1734986132096,0.168124,3380.9,3380.8,4.142567]
[1734986132470,0.168124,3380.9,3380.3,2.95825]
[1734986132767,0.168124,3380.9,3380.8,2.95787]
[1734986134979,0.168124,3380.9,3380.2,0.8081]
[1734986135166,0.168124,3380.9,3380.8,2.95787]
[1734986136465,0.168124,3380.9,3380.8,3.72747]
[1734986136671,4e-06,3380.9,3380.8,4.396023]
[1734986138673,0.786,3381.9,3380.8,4.396023]
[1734986139007,0.786,3381.9,3381.6,2.95711]
[1734986139714,0.786,3381.9,3380.8,1.438153]
[1734986139892,0.786,3381.9,3380.4,0.7654]
[1734986139893,0.55,3381.8,3380.4,0.7654]
[1734986140210,0.786,3381.9,3380.0,0.7654]
[1734986140211,0.8253,3381.4,3380.0,0.7654]
[1734986140374,0.8253,3381.4,3380.5,2.95805]
[1734986140571,0.8253,3381.4,3380.0,0.7654]
[1734986140885,0.8253,3381.4,3380.8,2.95787]
[1734986141405,0.8253,3381.4,3380.9,2.95773]
[1734986142037,0.8253,3381.4,3380.7,2.95793]
[1734986142169,0.8253,3381.4,3380.6,2.95796]
[1734986142367,0.8253,3381.4,3380.8,2.95787]
[1734986142786,0.8253,3381.4,3380.6,2.95804]
[1734986143182,0.8253,3381.4,3380.1,0.372407]
[1734986143516,0.8253,3380.5,3378.9,0.7654]
[1734986143671,0.8253,3380.5,3379.0,2.95945]
[1734986143672,0.8253,3380.4,3379.0,2.95945]
[1734986143873,0.8253,3380.4,3379.5,2.95899]
[1734986144085,0.8253,3380.4,3378.9,0.7654]
[1734986144086,0.8253,3380.4,3379.1,2.95932]
[1734986144373,0.8253,3380.4,3379.2,0.372472]
[1734986144586,0.8253,3380.4,3379.5,2.95896]
[1734986144928,0.8253,3380.4,3379.9,2.95862]
[1734986145084,0.55,3380.3,3379.2,0.372472]
[1734986145420,0.8253,3380.2,3379.5,2.95901]
[1734986145711,0.8253,3380.2,3379.3,0.3331842]
[1734986145945,0.8253,3380.2,3378.9,3.7654]
[1734986145946,0.8253,3380.2,3379.8,2.95875]
[1734986146738,0.8253,3380.2,3379.1,2.95929]
[1734986146962,0.8253,3380.2,3378.9,3.7654]
[1734986147267,0.8253,3380.0,3378.8,2.9596]
[1734986147537,0.8253,3380.0,3379.0,2.95945]
[1734986147911,0.8253,3380.0,3378.9,0.68762988]
[1734986148239,0.8253,3380.0,3379.9,2.95866]
[1734986148440,0.8253,3380.8,3379.9,2.95866]
[1734986148647,2.95811,3380.6,3379.0,0.7654]
[1734986148825,1.121111,3380.5,3379.0,0.7654]
[1734986149135,0.8253,3380.4,3379.6,2.9589]
[1734986149302,0.8253,3380.4,3379.1,2.95936]
[1734986149641,0.8253,3380.4,3379.0,6.8760988]
[1734986149840,0.8253,3380.4,3379.0,0.7654]
[1734986150062,3.78354,3380.4,3378.9,3.64712988]
[1734986150268,0.8253,3380.2,3378.9,0.68762988]
[1734986150419,0.8253,3380.2,3379.1,2.95929]
[1734986150794,3.336754,3380.3,3378.7,2.95971]
[1734986150795,0.8253,3380.0,3378.7,2.95971]
[1734986150919,0.8253,3380.0,3379.2,2.95922]
[1734986151127,0.8253,3380.0,3379.0,2.95942]
[1734986151441,0.8253,3380.0,3378.8,2.95963]
[1734986151442,1.258672,3380.0,3379.5,2.95898]
[1734986151643,1.258672,3380.0,3378.6,0.7654]
[1734986151644,0.8253,3380.0,3378.6,0.7654]
[1734986151805,0.8253,3380.0,3379.6,2.95891]
[1734986152853,0.79,3381.0,3379.6,2.95891]
[1734986153140,0.79,3381.0,3379.5,2.95901]
[1734986153318,0.79,3381.0,3380.3,2.95824]
[1734986153319,0.60424322,3380.7,3380.3,2.95824]
[1734986153524,0.79,3381.0,3380.3,2.95824]
[1734986154425,0.79,3381.0,3380.0,2.95855]
[1734986154627,2.95764,3381.1,3379.6,3.626949]
[1734986154628,0.7546,3380.8,3379.8,2.95873]
[1734986154942,0.7539,3380.6,3379.9,2.95866]
[1734986155313,0.7539,3380.6,3380.1,2.95843]
[1734986155942,3.50819,3380.5,3379.4,2.95909]
[1734986156106,0.7539,3380.1,3379.1,2.95931]
[1734986156306,0.7539,3380.1,3379.2,2.95925]
[1734986156740,0.7539,3380.1,3378.8,2.95957]
[1734986156741,0.7539,3380.1,3379.4,2.95907]
[1734986156944,0.7539,3380.1,3378.8,0.58668422]
[1734986157116,0.7539,3380.1,3379.6,2.95892]
[1734986157322,0.7539,3380.1,3379.7,2.95876]
[1734986157741,0.7539,3380.1,3379.7,0.295876]
[1734986157943,0.7539,3380.1,3380.0,2.95857]
[1734986158311,0.7539,3380.1,3379.9,2.95864]
[1734986159012,0.7539,3380.1,3380.0,2.95857]
[1734986159444,1.3198,3380.8,3379.2,2.95928]
[1734986159642,1.3198,3380.8,3380.2,2.95838]
[1734986159844,1.80994437,3380.8,3380.2,2.95838]
[1734986160046,1.25994437,3380.8,3379.7,2.95876]
[1734986160220,0.7698,3380.8,3380.0,2.95855]
[1734986160649,0.7698,3380.8,3380.2,2.95837]
[1734986160853,0.7698,3380.8,3379.1,3.7931]
[1734986161024,0.7698,3380.2,3379.3,2.95912]
[1734986161230,0.372814,3380.1,3379.3,2.95912]
[1734986161525,0.372814,3380.1,3378.7,0.7931]
[1734986161526,0.7698,3380.0,3378.7,0.7931]
[1734986161878,0.7698,3380.0,3379.9,2.95866]
[1734986162056,0.7698,3380.0,3379.6,2.95886]
[1734986162356,0.7698,3380.0,3379.3,2.9591]
[1734986162652,0.7698,3380.0,3379.6,2.95891]
[1734986162864,0.7698,3380.0,3379.3,0.29591]
[1734986162865,0.7698,3380.0,3379.4,2.9591]
[1734986163018,0.7674,3380.5,3379.5,0.02958605]
[1734986163316,0.7674,3380.5,3379.4,0.7848]
[1734986163317,0.7674,3380.5,3380.0,2.95851]
[1734986164231,0.7674,3380.5,3380.0,0.295851]
[1734986164463,0.7674,3380.5,3380.4,2.95822]
[1734986164655,1.22564835,3381.3,3380.0,0.8192]
[1734986164656,0.8013,3381.2,3380.0,0.8192]
[1734986164819,1.22564835,3381.3,3381.2,2.95752]
[1734986165019,3.27405177,3381.6,3380.9,2.95771]
[1734986165020,1.22564835,3381.5,3380.9,2.95771]
[1734986165215,1.22564835,3381.5,3380.7,0.8192]
[1734986165447,1.22564835,3381.5,3381.4,2.95735]
[1734986166326,0.8024,3382.0,3381.7,2.95707]
[1734986166963,0.8024,3382.0,3381.4,2.95731]
[1734986167136,0.8024,3382.0,3380.7,0.8192]
[1734986167342,0.8024,3382.0,3380.8,2.95787]
[1734986167536,0.8024,3382.0,3379.6,1.8233582]
[1734986167537,0.55,3381.8,3380.5,2.95807]
[1734986167867,0.55,3381.8,3379.7,4.35533741]
[1734986167868,0.8024,3381.2,3380.1,2.95846]
[1734986168082,2.95815,3380.5,3380.1,1.21557213]
[1734986168370,3.76064,3380.4,3380.1,1.21557213]
[1734986168558,0.55,3380.3,3380.1,1.21557213]
[1734986169555,2.9584,3380.2,3380.1,1.21557213]
[1734986169760,2.9584,3380.2,3379.2,2.95926]
[1734986169959,0.43108,3380.1,3379.2,2.95926]
[1734986170159,0.43108,3380.1,3379.3,2.95918]
[1734986170533,0.43108,3380.1,3379.3,2.95917]
[1734986170773,0.55,3380.3,3379.4,2.95909]
[1734986170973,0.8024,3380.4,3378.9,2.95954]
[1734986171179,0.8024,3380.4,3379.3,3.13976528]
[1734986171363,1.22564835,3380.7,3379.3,3.91086528]
[1734986171562,1.22564835,3380.7,3379.4,2.9591]
[1734986171765,1.22564835,3380.7,3380.1,2.95841]
[1734986172085,1.22564835,3380.7,3380.3,2.95829]
[1734986172374,0.771,3380.8,3380.3,2.95829]
[1734986172988,0.771,3380.8,3379.5,0.68699653]
[1734986172989,0.771,3380.8,3379.5,3.68699653]
[1734986173288,0.771,3380.8,3380.5,2.95808]
[1734986173645,0.771,3380.8,3380.2,2.95832]
[1734986174176,0.771,3380.8,3379.5,3.68699653]
[1734986174177,0.771,3380.8,3379.6,3.0]
[1734986174369,0.771,3380.8,3380.1,2.95848]
[1734986174536,0.771,3380.8,3379.7,0.96459265]
[1734986174977,0.771,3380.8,3379.9,2.95858]
[1734986175277,0.771,3380.8,3379.7,0.96459265]
[1734986175278,0.771,3380.8,3379.8,2.95875]
[1734986175479,0.771,3380.8,3380.0,2.95849]
[1734986175901,0.771,3380.8,3379.7,3.92337265]
[1734986176105,0.771,3380.8,3380.0,2.95857]
[1734986176272,2.95825,3380.4,3379.0,3.0]
[1734986176469,0.55,3380.7,3378.9,3.92886528]
[1734986176470,0.8145,3380.3,3379.1,2.95929]
[1734986176670,0.8145,3380.3,3378.9,0.7891]
[1734986176671,0.8145,3380.3,3378.9,3.74858]
[1734986176983,0.8145,3380.3,3379.6,2.95892]
[1734986177389,0.8145,3380.3,3379.3,2.95911]
[1734986177724,0.7613,3380.0,3378.5,0.7758]
[1734986177875,0.8319,3379.7,3378.2,2.96011]
[1734986178206,0.8319,3379.7,3379.0,2.9594]
[1734986178373,0.8319,3379.7,3378.5,3.13976528]
[1734986178579,0.8319,3379.7,3378.6,2.98939068]
[1734986178787,0.8319,3379.7,3379.3,2.95915]
[1734986179107,0.8319,3379.7,3378.8,0.8295]
[1734986179301,0.8319,3379.7,3379.6,2.95893]
[1734986180584,0.8319,3379.7,3379.4,2.95906]
[1734986181195,0.8319,3379.7,3379.2,2.95927]
[1734986181995,0.8319,3379.7,3378.8,0.8295]
[1734986181996,0.8319,3379.7,3379.4,2.95908]
[1734986182709,0.8319,3379.7,3379.2,2.95925]
[1734986183124,0.8319,3379.7,3378.4,3.0]
[1734986183408,0.806,3379.5,3378.5,2.95985]
[1734986183612,0.55,3379.4,3378.0,2.96027]
[1734986183782,0.7644,3379.3,3377.9,1.96847213]
[1734986183983,0.7644,3379.3,3378.4,2.95993]
[1734986184307,0.7644,3379.3,3377.9,0.7529]
[1734986184608,0.7644,3379.3,3378.3,2.95999]
[1734986184997,0.7644,3379.3,3378.0,0.80687474]
[1734986185210,0.7644,3379.3,3378.1,2.96018]
[1734986185511,0.7644,3379.3,3378.4,2.95995]
[1734986186335,0.7644,3379.3,3377.8,3.0]
[1734986186336,0.817,3379.3,3377.8,3.0]
[1734986186537,0.817,3378.9,3378.0,2.96027]
[1734986186740,1.367,3378.7,3377.3,3.96846528]
[1734986187041,1.367,3378.7,3377.7,2.96056]
[1734986187346,0.817,3378.4,3377.5,2.96075]
[1734986187531,0.55,3378.0,3376.9,1.8233582]
[1734986187705,0.817,3378.2,3376.9,4.7846382]
[1734986187906,0.55,3378.0,3376.9,2.96128]
[1734986188106,0.55,3377.7,3376.9,2.96128]
[1734986188702,0.55,3377.7,3376.6,2.96149]
[1734986189017,0.55,3377.5,3376.4,4.75935546]
[1734986189328,0.55,3377.3,3376.5,2.96164]
[1734986189530,0.7926,3377.4,3376.6,0.9840531]
[1734986189834,0.7926,3377.4,3377.2,2.96097]
[1734986190202,0.7926,3378.2,3376.7,3.78757]
[1734986190449,0.7926,3378.2,3377.0,3.0]
[1734986190616,2.03814835,3378.7,3378.5,2.95989]
[1734986190800,2.03814835,3378.7,3378.6,2.9598]
[1734986191214,2.03814835,3378.7,3378.4,2.95996]
[1734986191412,2.67429443,3378.7,3378.1,2.96018]
[1734986192169,1.44864608,3378.7,3378.1,2.9602]
[1734986192438,0.8125,3378.7,3377.9,2.96037]
[1734986192655,0.8125,3378.7,3378.6,2.9598]
[1734986192852,0.8125,3378.7,3378.3,2.96004]
[1734986193014,0.8125,3378.7,3377.7,3.13976528]
[1734986193015,0.8125,3378.7,3378.1,2.96019]
[1734986193814,0.8125,3378.7,3378.2,2.96015]
[1734986194015,0.8125,3378.7,3378.2,2.96009]
[1734986194516,0.8125,3378.7,3378.3,0.02959978]
[1734986194851,0.7761,3379.8,3378.6,2.9598]
[1734986195033,0.7761,3379.8,3379.0,2.95945]
[1734986195405,0.7761,3379.8,3378.5,3.13976528]
[1734986195604,0.7761,3379.8,3379.4,2.95905]
[1734986196359,0.7761,3379.8,3379.1,0.02958963]
[1734986196640,0.7761,3379.8,3379.0,0.7867]
[1734986196842,4.18337835,3381.0,3379.1,2.98894961]
[1734986197001,0.8317,3380.9,3379.1,0.02958961]
[1734986197205,0.20573483,3380.8,3380.2,2.95839]
[1734986197426,0.8317,3380.9,3380.0,2.95853]
[1734986197828,0.8317,3380.9,3380.1,2.95849]
[1734986198144,0.8317,3380.9,3379.7,3.13976528]
[1734986198322,0.8317,3380.9,3380.0,2.95853]
[1734986198842,0.8317,3380.9,3380.3,2.95829]
[1734986199205,0.8317,3380.9,3380.3,0.295829]
[1734986199407,0.8317,3380.9,3380.8,2.95787]
[1734986199845,0.60328736,3381.6,3380.9,2.95778]
[1734986200046,0.8082,3381.8,3380.9,2.95778]
[1734986200767,0.8082,3381.8,3380.4,2.95816]
[1734986200768,0.8082,3381.8,3381.3,2.95743]
[1734986200958,0.8082,3381.8,3381.4,2.95732]
[1734986201123,0.8082,3381.8,3381.6,2.95716]
[1734986201444,1.23064835,3382.5,3381.1,2.95755]
[1734986201445,1.23064835,3382.5,3382.4,2.95648]
[1734986202048,0.005,3382.5,3382.4,2.95648]
[1734986202255,0.005,3382.5,3382.4,3.86177153]
[1734986203320,0.005,3382.5,3382.4,2.95648]
[1734986205037,0.005,3382.5,3382.0,2.95676]
[1734986205431,0.005,3382.5,3381.8,0.7998]
[1734986205637,0.005,3382.5,3382.3,2.95653]
[1734986206851,0.005,3382.5,3382.1,2.9567]
[1734986207454,0.005,3382.5,3381.5,0.832]
[1734986207779,0.005,3382.5,3381.8,2.95699]
[1734986208140,0.7562,3382.4,3381.8,2.95699]
[1734986208842,0.7562,3382.4,3381.8,2.95697]
[1734986209343,0.7562,3382.4,3381.6,0.39717653]
[1734986209885,0.005,3382.5,3382.2,2.95658]
[1734986210094,0.005,3382.5,3382.4,2.95648]
[1734986214477,0.8199,3382.5,3381.7,3.91936528]
[1734986214796,0.8199,3382.5,3382.0,2.95677]
[1734986215192,0.005,3382.5,3381.7,3.91936528]
[1734986215371,0.005,3382.5,3382.2,2.95662]
[1734986216251,0.005,3382.5,3382.0,2.9568]
[1734986216986,0.005,3382.5,3382.1,2.95672]
[1734986217186,0.005,3382.5,3381.9,2.95691]
[1734986218331,0.005,3382.5,3382.3,2.95649]
[1734986218491,0.005,3382.5,3382.4,2.95648]
[1734986219596,0.005,3382.5,3382.0,0.73079295]
[1734986219597,0.7788,3382.4,3382.0,0.73079295]
[1734986219868,0.7788,3382.4,3382.2,2.95662]
[1734986220315,0.005,3382.5,3381.8,2.957]
[1734986220875,0.7607,3382.9,3382.1,2.95666]
[1734986221078,0.7871,3382.6,3381.7,2.95707]
[1734986221617,0.7871,3382.6,3381.7,2.95709]
[1734986221930,0.7871,3382.6,3382.5,2.95639]
[1734986222078,0.7648,3383.0,3382.5,2.95639]
[1734986222275,0.7648,3383.0,3382.6,2.95628]
[1734986222922,0.7648,3383.0,3382.7,2.95617]
[1734986224585,0.7902,3383.4,3382.7,2.95617]
[1734986225312,0.7902,3383.4,3382.7,3.251787]
[1734986225513,0.7902,3383.4,3382.8,2.95607]
[1734986226271,0.7902,3383.4,3382.7,0.295617]
[1734986226738,0.7902,3383.4,3382.7,3.251797]
[1734986227165,0.7902,3383.4,3382.8,2.95609]
[1734986228150,0.005,3383.4,3382.8,3.3251707]
[1734986228354,0.005,3383.4,3382.8,0.3251707]
[1734986228705,0.005,3383.4,3382.3,3.93896528]
[1734986228909,0.005,3383.4,3382.7,2.9562]
[1734986229155,0.005,3383.4,3382.3,3.93896528]
[1734986229319,0.555,3383.4,3382.3,3.93896528]
[1734986229514,0.555,3383.4,3382.4,2.95648]
[1734986229832,0.005,3383.4,3383.1,2.95579]
[1734986230032,0.005,3383.4,3383.2,2.9557]
[1734986230813,0.005,3383.4,3383.3,0.775]
[1734986231148,0.005,3383.4,3383.3,6.73069]
[1734986234447,0.005,3383.8,3383.7,2.95534]
[1734986234650,0.005,3383.8,3383.7,3.50234793]
[1734986235720,2.25,3386.0,3383.7,3.50234793]
[1734986235721,3.13976528,3385.7,3384.0,0.25]
[1734986236098,0.55,3384.9,3384.0,3.20501]
[1734986236220,3.5043,3384.9,3384.0,0.25]
[1734986236421,0.55,3384.9,3384.0,0.25]
[1734986236871,0.55,3384.7,3384.0,0.25]
[1734986237224,0.55,3384.7,3384.0,3.20506]
[1734986237788,0.55,3384.7,3384.1,2.95499]
[1734986238060,0.55,3384.7,3384.0,0.25]
[1734986238270,0.55,3384.7,3383.2,5.95569]
[1734986238271,0.55,3384.7,3383.8,0.25]
[1734986238448,0.14874993,3384.7,3383.3,2.95569]
[1734986238645,2.95464,3384.5,3383.4,2.95554]
[1734986238821,0.4659,3384.3,3383.5,0.25]
[1734986239127,0.55,3384.2,3383.6,2.95543]
[1734986239328,0.4659,3384.3,3383.8,0.25]
[1734986239551,0.4659,3384.3,3383.6,2.95543]
[1734986239762,0.55,3384.2,3383.4,2.95558]
[1734986240332,0.947055,3384.2,3383.4,2.95558]
[1734986240733,0.55,3384.0,3383.2,2.95575]
[1734986241173,0.4659,3383.9,3383.2,2.95575]
[1734986241467,0.55,3383.8,3383.2,3.20575]
[1734986241677,0.55,3383.8,3383.4,2.95557]
[1734986241835,0.4659,3383.9,3383.4,2.95557]
[1734986241836,0.4659,3383.9,3383.8,0.25]
[1734986242181,3.14874993,3384.7,3383.7,0.25]
[1734986242182,0.4659,3384.6,3383.7,0.25]
[1734986242594,0.4659,3384.6,3383.9,0.25]
[1734986243274,1.05960685,3384.6,3384.0,2.95505]
[1734986244372,1.05960685,3384.6,3383.9,0.25]
[1734986245060,1.05960685,3384.6,3383.9,2.95516]
[1734986245257,1.05960685,3384.6,3383.9,3.20516]
[1734986245787,1.05960685,3384.6,3384.3,2.95479]
[1734986246093,1.05960685,3384.6,3384.2,2.9549]
[1734986246749,1.05960685,3384.6,3384.1,0.25]
[1734986247290,1.05960685,3384.6,3384.1,3.20491]
[1734986247496,1.05960685,3384.6,3384.1,0.25]
[1734986247706,1.05960685,3384.6,3384.4,2.95472]
[1734986247996,0.4659,3385.5,3384.8,2.95436]
[1734986248304,0.4659,3385.5,3384.5,0.545472]
[1734986248305,1.69154835,3385.5,3384.9,2.95425]
[1734986248509,1.22564835,3385.5,3385.4,3.20386]
[1734986249199,1.22564835,3385.5,3385.4,4.02416]
[1734986249883,1.05439318,3386.7,3386.0,2.95329]
[1734986250427,1.05439318,3386.7,3386.1,2.95321]
[1734986250428,0.4659,3386.7,3386.1,2.95321]
[1734986250868,0.4659,3386.7,3386.0,0.25]
[1734986251064,0.4659,3386.7,3386.0,3.20331]
[1734986251462,2.9524,3387.1,3385.5,3.66968808]
[1734986251463,0.4659,3387.1,3386.7,0.25]
[1734986251701,0.4659,3387.1,3386.3,2.95304]
[1734986251901,0.4659,3387.1,3386.6,0.25]
[1734986252322,0.4659,3387.1,3386.7,0.25]
[1734986252528,0.4659,3387.1,3386.1,0.25]
[1734986252825,0.4659,3387.1,3386.3,0.25]
[1734986253400,0.4659,3387.1,3386.3,3.20304]
[1734986253583,0.4659,3387.1,3386.3,0.25]
[1734986253791,0.40212632,3387.0,3386.3,0.25]
[1734986253995,0.40212632,3387.0,3386.2,2.95314]
[1734986254216,0.40212632,3387.0,3386.4,0.25]
[1734986254523,0.4659,3386.9,3386.0,0.25]
[1734986254817,0.4659,3386.6,3385.5,2.95376]
[1734986255033,0.396864,3386.5,3385.5,3.20376]
[1734986255212,0.396864,3386.5,3385.2,0.7957]
[1734986255213,0.4659,3386.6,3386.2,0.25]
[1734986255413,0.4659,3386.6,3386.1,2.95322]
[1734986256155,0.4659,3386.6,3385.9,0.25]
[1734986256306,0.4659,3386.6,3385.8,2.95345]
[1734986256502,0.4659,3386.4,3385.3,0.25]
[1734986256720,0.4659,3386.4,3384.8,3.1358208]
[1734986256721,3.41922,3386.1,3385.1,0.25]
[1734986256937,0.4659,3385.6,3384.7,0.25]
[1734986257084,0.4659,3386.2,3385.8,2.95347]
[1734986257456,0.4659,3386.6,3385.7,0.25]
[1734986257730,0.4659,3386.6,3386.1,0.25]
[1734986257951,0.4659,3386.6,3386.1,3.20324]
[1734986258679,0.4659,3386.6,3386.1,0.25]
[1734986258885,0.4659,3386.6,3385.7,2.95351]
[1734986259184,0.4659,3386.6,3385.7,3.20351]
[1734986259644,0.4659,3386.6,3385.8,2.95348]
[1734986260134,0.4659,3386.6,3386.0,0.25]
[1734986260426,0.4659,3386.6,3386.2,2.95314]
[1734986261223,0.4659,3386.6,3386.0,3.20331]
[1734986262682,0.4659,3386.6,3386.0,0.25]
[1734986263339,0.4659,3386.6,3386.1,2.95322]
[1734986263834,0.4659,3386.6,3386.4,2.95297]
[1734986264984,0.4659,3386.6,3386.5,2.9529]
[1734986265191,0.55,3387.3,3386.7,2.95272]
[1734986265389,0.4659,3387.4,3386.9,0.25]
[1734986265590,0.4659,3387.4,3386.8,0.25]
[1734986265848,0.4659,3387.4,3387.0,0.25]
[1734986266001,0.4659,3387.4,3387.1,2.95229]
[1734986266231,0.168124,3387.5,3387.2,3.20221]